{"text_format":"1","workbook":"xlsx","n_sheets":4,"sheets":["Cover","Report","Footnotes","Disclaimers&Definitions "],"not_rendered":{"charts":0,"images":8,"macros":0,"external_links":1,"defined_names":17,"comments":0,"pivot_tables":0},"unopened":[],"bounds":{"document_bytes":16777216,"sheet_cells":100000,"rows_first":2000,"rows_last":500,"rows_between":2000,"halvings":0,"cell_chars":16384,"cell_head_chars":4096},"cells_cut":0,"cells_raw":0,"read":"whole","date_system":"1900"}

{"sheet":"Cover","index":0,"n_rows":11,"n_cols":1,"rows_kept":11,"cut":false,"hidden":false,"merged":[]}
[]
[]
[]
[]
[]
[]
[]
[]
[]
[]
[" "]

{"sheet":"Report","index":1,"n_rows":33,"n_cols":31,"rows_kept":33,"cut":false,"hidden":false,"merged":[[2,0,2,12],[3,0,3,12],[5,14,5,17],[7,14,7,17]]}
[]
["Updated: March 17, 2014"]
["Revisions Noted in Bold"]
["Dynamically positioned «"]
[]
[null,null,null,null,null,null,null,null,null,null,null,"Dayrate on","Dayrate on",null,"Estimated Out of Service Days (4)"]
[null,null,null,null,"Yr. (1)","Water","Drilling ",null,null,"Estimated","Estimated","Current","Previous"]
[null,"Footnote ","Floater","Dynamically","Entered","Depth","Depth",null,null," Contract","Expiration","Contract (3)"," Contract (3)",null,2014]
["Rig Type/Name","References","Type","Positioned","Service","(Feet)","(Feet)","Location","Customer","Start Date (2)"," Date (2)","(Dollars)","(Dollars)",null,"Q1","Q2","Q3","Q4"]
[]
["High Specification Floater: Ultra-Deepwater"]
[]
["Dhirubhai Deepwater KG2",null,"ship","«",2010,12000,35000,"India","Reliance","2012-03-01","2015-02-01",510000,573000,null,{"$f":"IFERROR(VLOOKUP($A13,'[1]2014'!$B$4:$R$54,14,0),0)","v":0},{"$f":"IFERROR(VLOOKUP($A13,'[1]2014'!$B$4:$R$54,15,0),0)","v":21},{"$f":"IFERROR(VLOOKUP($A13,'[1]2014'!$B$4:$R$54,16,0),0)","v":0},{"$f":"IFERROR(VLOOKUP($A13,'[1]2014'!$B$4:$R$54,17,0),0)","v":0},null,null,null,null,null,null,null,null,null,null,null,null,{"$f":"R13-Z13","v":0}]
["Deepwater Millennium","(7)","ship","«",1999,10000,30000,"Australia","Woodside","2014-04-01","2015-03-31",599000,570000,null,{"$f":"IFERROR(VLOOKUP($A14,'[1]2014'!$B$4:$R$54,14,0),0)","v":90},{"$f":"IFERROR(VLOOKUP($A14,'[1]2014'!$B$4:$R$54,15,0),0)","v":3},{"$f":"IFERROR(VLOOKUP($A14,'[1]2014'!$B$4:$R$54,16,0),0)","v":0},{"$f":"IFERROR(VLOOKUP($A14,'[1]2014'!$B$4:$R$54,17,0),0)","v":0},null,null,null,null,null,null,null,null,null,null,null,null,0]
[null,"(7)",null,null,null,null,null,"Australia","Woodside","2015-03-15","2016-03-21",610000,{"$f":"L14","v":599000}]
["GSF Development Driller I",-6,"semi","«",2005,7500,37500,"USGOM",null,"Idle",null,null,null,null,{"$f":"IFERROR(VLOOKUP($A16,'[1]2014'!$B$4:$R$54,14,0),0)","v":0},{"$f":"IFERROR(VLOOKUP($A16,'[1]2014'!$B$4:$R$54,15,0),0)","v":0},{"$f":"IFERROR(VLOOKUP($A16,'[1]2014'!$B$4:$R$54,16,0),0)","v":0},{"$f":"IFERROR(VLOOKUP($A16,'[1]2014'!$B$4:$R$54,17,0),0)","v":0},null,null,null,null,null,null,null,null,null,null,null,null,0]
["GSF Development Driller II",-6,"semi","«",2005,7500,37500,"USGOM","BP","2008-11-01","2014-04-28",603000,208000,null,{"$f":"IFERROR(VLOOKUP($A17,'[1]2014'!$B$4:$R$54,14,0),0)","v":0},{"$f":"IFERROR(VLOOKUP($A17,'[1]2014'!$B$4:$R$54,15,0),0)","v":20},{"$f":"IFERROR(VLOOKUP($A17,'[1]2014'!$B$4:$R$54,16,0),0)","v":0},{"$f":"IFERROR(VLOOKUP($A17,'[1]2014'!$B$4:$R$54,17,0),0)","v":0},null,null,null,null,null,null,null,null,null,null,null,null,0]
[]
["High Specification Floater: Deepwater"]
[null,null,null,null,null,null,null,null,null,null,null,null,null,null,{"$f":"IFERROR(VLOOKUP($A20,'[1]2014'!$B$4:$R$54,14,0),0)","v":0},{"$f":"IFERROR(VLOOKUP($A20,'[1]2014'!$B$4:$R$54,15,0),0)","v":0},{"$f":"IFERROR(VLOOKUP($A20,'[1]2014'!$B$4:$R$54,16,0),0)","v":0},{"$f":"IFERROR(VLOOKUP($A20,'[1]2014'!$B$4:$R$54,17,0),0)","v":0}]
["M.G. Hulme, Jr.",-7,"semi",null,"1983/1996",5000,25000,"India","ONGC","2011-09-01","2014-04-01",186000,"N/A",null,{"$f":"IFERROR(VLOOKUP($A21,'[1]2014'!$B$4:$R$54,14,0),0)","v":0},{"$f":"IFERROR(VLOOKUP($A21,'[1]2014'!$B$4:$R$54,15,0),0)","v":45},{"$f":"IFERROR(VLOOKUP($A21,'[1]2014'!$B$4:$R$54,16,0),0)","v":0},{"$f":"IFERROR(VLOOKUP($A21,'[1]2014'!$B$4:$R$54,17,0),0)","v":0},null,null,null,null,null,null,null,null,null,null,null,null,0]
[null,null,null,null,null,null,null,null,null,null,null,null,null,null,{"$f":"IFERROR(VLOOKUP($A22,'[1]2014'!$B$4:$R$54,14,0),0)","v":0},{"$f":"IFERROR(VLOOKUP($A22,'[1]2014'!$B$4:$R$54,15,0),0)","v":0},{"$f":"IFERROR(VLOOKUP($A22,'[1]2014'!$B$4:$R$54,16,0),0)","v":0},{"$f":"IFERROR(VLOOKUP($A22,'[1]2014'!$B$4:$R$54,17,0),0)","v":0}]
["Midwater Floaters"]
[null,null,null,null,null,null,null,null,null,null,null,null,null,null,{"$f":"IFERROR(VLOOKUP($A24,'[1]2014'!$B$4:$R$54,14,0),0)","v":0},{"$f":"IFERROR(VLOOKUP($A24,'[1]2014'!$B$4:$R$54,15,0),0)","v":0},{"$f":"IFERROR(VLOOKUP($A24,'[1]2014'!$B$4:$R$54,16,0),0)","v":0},{"$f":"IFERROR(VLOOKUP($A24,'[1]2014'!$B$4:$R$54,17,0),0)","v":0}]
["GSF Grand Banks","(6), (8)","semi",null,1984,1500,25000,"Canada","Husky","2013-01-01","2015-09-01",408000,297000,null,{"$f":"IFERROR(VLOOKUP($A25,'[1]2014'!$B$4:$R$54,14,0),0)","v":35.791666666666664},{"$f":"IFERROR(VLOOKUP($A25,'[1]2014'!$B$4:$R$54,15,0),0)","v":20},{"$f":"IFERROR(VLOOKUP($A25,'[1]2014'!$B$4:$R$54,16,0),0)","v":0},{"$f":"IFERROR(VLOOKUP($A25,'[1]2014'!$B$4:$R$54,17,0),0)","v":0},null,null,null,null,null,null,null,null,null,null,null,null,{"$f":"R25-Z25","v":0}]
["Transocean Prospect",-7,"semi",null,"1983/1992",1500,25000,"UKNS","Nexen","2013-08-01","2014-05-15",425000,252000,null,{"$f":"IFERROR(VLOOKUP($A26,'[1]2014'!$B$4:$R$54,14,0),0)","v":0},{"$f":"IFERROR(VLOOKUP($A26,'[1]2014'!$B$4:$R$54,15,0),0)","v":0},{"$f":"IFERROR(VLOOKUP($A26,'[1]2014'!$B$4:$R$54,16,0),0)","v":0},{"$f":"IFERROR(VLOOKUP($A26,'[1]2014'!$B$4:$R$54,17,0),0)","v":0},null,null,null,null,null,null,null,null,null,null,null,null,0]
[null,-7,null,null,null,null,null,"UKNS","Conoco Phillips",{"$f":"K26","v":"2014-05-15"},"2014-10-01",405000,{"$f":"L26","v":425000}]
[null,-7,null,null,null,null,null,"UKNS","Conoco Phillips",{"$f":"+K27","v":"2014-10-01"},"2015-01-01",412000,{"$f":"+L27","v":405000}]
[null,-7,null,null,null,null,null,"UKNS","Conoco Phillips",{"$f":"K28","v":"2015-01-01"},"2015-05-01",375000,{"$f":"+L28","v":412000}]
[null,null,null,null,null,null,null,null,null,null,null,null,null,null,{"$f":"IFERROR(VLOOKUP($A30,'[1]2014'!$B$4:$R$54,14,0),0)","v":0},{"$f":"IFERROR(VLOOKUP($A30,'[1]2014'!$B$4:$R$54,15,0),0)","v":0},{"$f":"IFERROR(VLOOKUP($A30,'[1]2014'!$B$4:$R$54,16,0),0)","v":0},{"$f":"IFERROR(VLOOKUP($A30,'[1]2014'!$B$4:$R$54,17,0),0)","v":0}]
["High Specification Jackups"]
["GSF Galaxy III"," (6), (7)",null,null,1999,400,30000,"UKNS","Nexen","2013-07-01","2014-05-01",226000,146000,null,0,0,50,39]
[null,"(7)",null,null,null,null,null,"UKNS","Nexen","2014-05-22","2014-07-31",180000,226000]

{"sheet":"Footnotes","index":2,"n_rows":17,"n_cols":3,"rows_kept":17,"cut":false,"hidden":false,"merged":[[4,1,4,2],[8,2,8,13],[6,2,6,13],[7,2,7,13],[9,2,9,13],[16,2,16,13],[15,2,15,13],[10,2,10,13],[11,2,11,13],[12,2,12,13],[13,2,13,13],[14,2,14,13]]}
[]
[null,{"$f":"+Report!A2","v":"Updated: March 17, 2014"}]
[]
[]
[null,"Footnotes"]
["Prev"]
["(1)","(1)","Dates shown are the original service date and the date of the most recent upgrade, if any."]
["(2)","(2)","Estimated Contract Start and Estimated Expiration Dates are calculated as follows: (1) for events estimated to occur between the 1st and 15th of a month, the previous month is reported (i.e. a contract which is estimated to commence on May 4, 2013 will be reported as commencing in April 2013) and (2) for events estimated to occur between the 16th and the end of a month, the actual month is reported (i.e. a contract which is estimated to commence on May 24, 2013 will be reported as commencing in May 2013).  Expiration dates represent the company's current estimate of the earliest date the contract for each rig is likely to expire. Some rigs have two or more contracts in continuation, so the last line shows the estimated earliest availability. Many contracts permit the customer to extend the contract.  "]
["(3)","(3)","Represents the full operating dayrate, although the average dayrate over the term of the contract will be lower and could be substantially lower. Does not reflect incentive programs which are typically based on the rig's operating performance against a performance curve. Please refer to the “Customer Contract Duration and Dayrates and Risks Associated with Operations” section of the Disclaimers & Definitions for a description of dayrates.  This column may not reflect the rate currently being received under the contract as a result of an applicable standby rate or other rate, which typically is less than the contract dayrate."]
["(4)","(4)","The out of service time represents those days where a rig is scheduled to be out of service and not be available to earn an operating dayrate. Please refer to the “Out of Service Days (Shipyards, Mobilizations, Demobilizations, Contract Preparation)” section of the Disclaimers & Definitions for a full description.  "]
["(5)","(5)","Estimated Average Contract Dayrate is defined as the average contracted full operating dayrate to be earned per revenue earning day. See note (3) for definition of full operating dayrate."]
["(6)","(6)","Reflects the current contracted dayrate which could reflect prior cost escalations and could change in the future due to further cost escalations."]
["(7)","(7)","Reflects the current contracted dayrate which is comprised of a foreign currency component and which could change due to foreign exchange adjustments."]
["(8)","(8)","Current contract provides for a bonus incentive opportunity not reflected in the stated current contract dayrate."]
["(9)","(9)","For the period of time that this rig is contracted to Applied Drilling Technology International, the drilling management services division of the company's U.K. operating subsidiary, accounting rules require that we eliminate the revenues and costs related to those contracts from the contract drilling segment of the consolidated statement of operations.  Revenues from turnkey contracts will be recognized in other revenues and are contingent upon successful completion of the well program."]
["(10)","(10)","Fixed price options may be exercised at the customer’s discretion. During periods when dayrates on new contracts are increasing relative to existing contracts, the likelihood of customers’ exercising fixed price options increases. During periods when dayrates on new contracts are decreasing relative to existing contracts, the likelihood of customers’ exercising fixed price options declines."]
["(11)","(11)","The contract is expected to start in the quarter indicated.  Factors that could influence the contract start date include shipyard delivery, customer acceptance, and mobilization to operating location, among others."]

{"sheet":"Disclaimers&Definitions ","index":3,"n_rows":3,"n_cols":1,"rows_kept":3,"cut":false,"hidden":false,"merged":[[2,0,2,11]]}
[" "]
[]
["DISCLAIMERS & DEFINITIONS"]